{"text_format":"3","workbook":"xlsx","n_sheets":2,"sheets":["請求書","会社設定"],"not_rendered":{"images":1,"defined_names":27},"read":"whole","date_system":"1900"}

{"sheet":"請求書","index":0,"n_rows":35,"n_cols":7,"rows_kept":35,"merged":[[1,1,1,2],[1,3,2,4],[1,6,2,6],[3,3,3,4],[4,3,4,4],[5,3,5,4],[23,1,23,3],[24,1,24,3],[25,1,25,3],[26,1,26,3],[34,1,34,4]]}
[null,"請求書","0005"]
[null,{"$f":"TODAY()","v":"2018-07-13"},null,{"$f":"InvoiceTotal","v":79.65},null," ","会社設定"]
[null,"支払期日:",{"$f":"TODAY()+15","v":"2018-07-28"},null,null," "]
[null,"KIM ABERCROMBIE",null,"ADVENTURE WORKS"]
[null,"Fabrikam, Inc.",null,"23456 Maple Street"]
[null,"1234 First Street",null,"Orange Grove, CA 09876"]
[null,"Forest,  OR 12345"]
[null,"数量","詳細","単価","行の合計"]
[null,2,"ウィジェット",14.95,{"$f":"IFERROR(InvoiceDetails[[#This Row],[単価]]*InvoiceDetails[[#This Row],[数量]],\"\")","v":{"v":29.9,"d":"29.90"}}]
[null,5,"ワッシャー",9.95,{"$f":"IFERROR(InvoiceDetails[[#This Row],[単価]]*InvoiceDetails[[#This Row],[数量]],\"\")","v":49.75}]
[{"$nulls":4},{"$f":"IFERROR(InvoiceDetails[[#This Row],[単価]]*InvoiceDetails[[#This Row],[数量]],\"\")","v":0}]
[{"$nulls":4},{"$f":"IFERROR(InvoiceDetails[[#This Row],[単価]]*InvoiceDetails[[#This Row],[数量]],\"\")","v":0}]
[{"$nulls":4},{"$f":"IFERROR(InvoiceDetails[[#This Row],[単価]]*InvoiceDetails[[#This Row],[数量]],\"\")","v":0}]
[{"$nulls":4},{"$f":"IFERROR(InvoiceDetails[[#This Row],[単価]]*InvoiceDetails[[#This Row],[数量]],\"\")","v":0}]
[{"$nulls":4},{"$f":"IFERROR(InvoiceDetails[[#This Row],[単価]]*InvoiceDetails[[#This Row],[数量]],\"\")","v":0}]
[{"$nulls":4},{"$f":"IFERROR(InvoiceDetails[[#This Row],[単価]]*InvoiceDetails[[#This Row],[数量]],\"\")","v":0}]
[{"$nulls":4},{"$f":"IFERROR(InvoiceDetails[[#This Row],[単価]]*InvoiceDetails[[#This Row],[数量]],\"\")","v":0}]
[{"$nulls":4},{"$f":"IFERROR(InvoiceDetails[[#This Row],[単価]]*InvoiceDetails[[#This Row],[数量]],\"\")","v":0}]
[{"$nulls":4},{"$f":"IFERROR(InvoiceDetails[[#This Row],[単価]]*InvoiceDetails[[#This Row],[数量]],\"\")","v":0}]
[{"$nulls":4},{"$f":"IFERROR(InvoiceDetails[[#This Row],[単価]]*InvoiceDetails[[#This Row],[数量]],\"\")","v":0}]
[{"$nulls":4},{"$f":"IFERROR(InvoiceDetails[[#This Row],[単価]]*InvoiceDetails[[#This Row],[数量]],\"\")","v":0}]
[{"$nulls":4},{"$f":"IFERROR(InvoiceDetails[[#This Row],[単価]]*InvoiceDetails[[#This Row],[数量]],\"\")","v":0}]
[{"$nulls":4},{"$f":"IFERROR(InvoiceDetails[[#This Row],[単価]]*InvoiceDetails[[#This Row],[数量]],\"\")","v":0}]
[null,"割引率"]
[null,"正味合計",null,null,{"$f":"SUM(InvoiceDetails[行の合計])-E24","v":{"v":79.65,"d":"79.65 ¥"}}]
[null,"税"]
[null,{"$f":"REPT(CompanySetup_YourCurrencyAbbreviation,LEN(CompanySetup_YourCurrencyAbbreviation)>0) & \" 合計\"","v":"米ドル 合計"},null,null,{"$f":"IFERROR(E25+E26, \"\")","v":{"v":79.65,"d":"79.65 ¥"}}]
[null,"お支払いの詳細",null,null,"その他の情報"]
[null,"受取人の名前:",{"$f":" CompanySetup_BankBeneficiaryName","v":"Adventure Works"},null,{"$f":"IFERROR(CompanySetup_YourName,\"\")","v":""}]
[null,"銀行の名前:",{"$f":"CompanySetup_BankName","v":"Woodgrove Bank"},null,{"$f":"IFERROR(\"電話: \" & CompanySetup_YourPhone,\"\")","v":"電話: 425-555-0150"}]
[null,"銀行の住所:",{"$f":"CompanySetup_BankAddress","v":"234 Main St. Orange Grove, CA 09876"},null,{"$f":"IFERROR(\"FAX: \" & CompanySetup_YourFax,\"\")","v":"FAX: 425-555-0151"}]
[null,"口座番号:",{"$f":"CompanySetup_BankAccount","v":1234567},null,{"$f":"IFERROR(CompanySetup_YourURL,\"\")","v":"Adventure-Works.com"}]
[null,"ルーティング番号 (SWIFT コード):",{"$f":"CompanySetup_BankRouting","v":9876543210},null,{"$f":"IFERROR(CompanySetup_YourEmail,\"\")","v":"Accounting@Adventure-Works.com"}]
[null,"支払参照:",{"$f":"InvoiceNumberDisplay","v":"0005"},null,{"$f":"IFERROR(IF(LEN(Client_PO),\"Contract/PO: \" & Client_PO,\"\"),\"\")","v":""}]
[null,{"$f":"UPPER(\"支払いは銀行振込または \" & CompanySetup_CheckPayee& \"を受取人とする小切手で行う必要があります。\")","v":"支払いは銀行振込または ADVENTURE WORKSを受取人とする小切手で行う必要があります。"}]

{"sheet":"会社設定","index":1,"n_rows":20,"n_cols":5,"rows_kept":20}
[null,"会社設定"]
[null,"請求元の会社の詳細","価格",null,"請求書"]
[null,"名前","Greg Akselrod"]
[null,"会社名","ADVENTURE WORKS"]
[null,"住所行 1","23456 Maple Street"]
[null,"住所行 2","Orange Grove, CA 09876"]
[null,"住所行 3"]
[null,"住所行 4"]
[null,"住所行 5"]
[null,"電話","425-555-0150"]
[null,"FAX","425-555-0151"]
[null,"Web サイト","Adventure-Works.com"]
[null,"メール​​","Accounting@Adventure-Works.com"]
[null,"通貨の省略形","米ドル"]
[null,"銀行電信送金の受取人の名前","Adventure Works"]
[null,"銀行の名前","Woodgrove Bank"]
[null,"銀行の住所","234 Main St. Orange Grove, CA 09876"]
[null,"口座番号",1234567]
[null,"ルーティング番号 (SWIFT コード)",9876543210]
[null,"支払先","Adventure Works"]